bitfinex-derivatives/quotes_ETHF0:USTF0_20240904
["timestamp","ask_amount","ask_price","bid_price","bid_amount"]
[1725468683328,0.40381,2476.1,2475.9,0.40988865]
[1725468683526,0.40381,2476.0,2475.9,0.00605865]
[1725468684924,4.22325865,2476.4,2475.9,0.00605865]
[1725468685130,0.00605865,2476.4,2475.9,2.09605865]
[1725468685428,0.40980865,2476.4,2476.1,2.09]
[1725468685627,0.40980865,2476.4,2476.1,2.49379]
[1725468685827,0.00605865,2476.4,2476.2,0.40378]
[1725468686026,0.00605865,2476.4,2476.3,0.40376]
[1725468686321,0.00605865,2476.4,2476.2,0.40377]
[1725468686526,0.40980865,2476.4,2476.2,0.40377]
[1725468686732,0.00605865,2476.4,2476.1,2.9359]
[1725468686920,0.00605865,2476.4,2476.3,0.40376]
[1725468687523,0.00605865,2476.4,2476.3,6.53216]
[1725468688124,0.00605865,2476.4,2476.3,7.54157]
[1725468688327,0.00605865,2476.4,2476.3,6.53216]
[1725468688629,0.40980865,2476.4,2476.3,6.53216]
[1725468689128,0.00605865,2476.4,2476.3,6.53216]
[1725468689334,0.40980865,2476.4,2476.3,6.1284]
[1725468689628,0.00605865,2476.4,2476.3,0.40376]
[1725468690030,0.00605865,2476.4,2476.3,6.53216]
[1725468690440,0.40378,2476.2,2476.1,3.2078]
[1725468690627,4.0499,2476.3,2475.9,0.00605865]
[1725468693035,0.8421,2476.3,2475.9,2.49987865]
[1725468693226,0.4038,2476.1,2475.9,2.49987865]
[1725468693933,0.40379,2476.2,2476.0,0.40381]
[1725468694432,0.40378,2476.2,2476.0,0.40381]
[1725468694626,0.8421,2476.3,2476.0,0.40381]
[1725468694826,0.40378,2476.2,2476.0,0.40381]
[1725468695027,0.4038,2476.1,2476.0,0.40381]
[1725468695436,0.4038,2476.1,2475.9,2.49987865]
[1725468695937,0.40381,2476.1,2475.9,2.49987865]
[1725468696241,0.40381,2476.0,2475.9,2.49987865]
[1725468696443,0.4038,2476.1,2475.9,2.49987865]
[1725468696637,0.40381,2476.0,2475.9,2.09605865]
[1725468696830,0.40381,2476.1,2475.9,2.49987865]
[1725468697243,0.40379,2476.2,2476.0,0.40381]
[1725468697744,0.8421,2476.3,2476.0,0.40381]
[1725468697943,0.8421,2476.3,2476.1,0.40379]
[1725468698247,0.40378,2476.2,2476.1,0.40379]
[1725468698440,0.8421,2476.3,2476.2,0.40378]
[1725468698646,1.24586,2476.3,2476.2,0.40378]
[1725468698843,0.8421,2476.3,2476.2,0.40378]
[1725468699142,0.00605865,2476.4,2476.3,0.40376]
[1725468699344,0.00605865,2476.4,2476.3,2.49376]
[1725468699540,0.00605865,2476.4,2476.3,6.53216]
[1725468700245,0.00605865,2476.4,2476.3,7.54157]
[1725468701451,0.00605865,2476.4,2476.3,15.40658]
[1725468702940,0.00605865,2476.4,2476.3,6.53216]
[1725468703349,0.00605865,2476.4,2476.3,7.54157]
[1725468703549,0.00605865,2476.4,2476.3,8.55098]
[1725468704346,0.00605865,2476.4,2476.3,14.55098]
[1725468707049,0.00605865,2476.4,2476.3,2.49376]
[1725468707252,0.87655865,2476.4,2476.3,7.54157]
[1725468707549,0.00605865,2476.4,2476.3,7.54157]
[1725468707749,0.00605865,2476.4,2476.3,14.55098]
[1725468709551,0.00605865,2476.4,2476.3,8.55098]
[1725468709755,0.00605865,2476.4,2476.3,6.53216]
[1725468710053,0.00605865,2476.4,2476.3,0.40376]
[1725468710959,0.40376,2476.3,2476.2,3.61157]
[1725468711155,1.8303,2476.3,2476.2,3.61157]
[1725468711656,2.23406,2476.3,2476.2,3.61157]
[1725468711964,2.23406,2476.3,2476.2,3.2078]
[1725468712459,2.23406,2476.3,2476.2,3.61158]
[1725468713059,2.23406,2476.3,2476.2,3.2078]
[1725468713261,2.23406,2476.3,2476.2,3.61158]
[1725468713759,1.8303,2476.3,2476.2,3.61158]
[1725468714454,2.23406,2476.3,2476.2,3.61158]
[1725468714855,1.8303,2476.3,2476.2,3.61158]
[1725468715060,0.9293,2476.3,2476.2,4.62104]
[1725468715356,0.9293,2476.3,2476.2,3.61158]
[1725468715662,0.9293,2476.3,2476.2,3.2078]
[1725468715663,1.33306,2476.3,2476.2,3.2078]
[1725468716162,1.33306,2476.3,2476.2,3.61158]
[1725468717262,0.9293,2476.3,2476.2,3.61158]
[1725468717663,1.33306,2476.3,2476.2,3.61158]
[1725468717961,0.9293,2476.3,2476.2,3.61158]
[1725468718162,0.9293,2476.3,2476.2,4.62104]
[1725468718961,0.9293,2476.3,2476.2,5.6305]
[1725468719162,0.9293,2476.3,2476.2,9.6689]
[1725468719459,0.00605865,2476.4,2476.3,1.41317]
[1725468719755,0.00605865,2476.4,2476.3,1.30336]
[1725468719962,0.00605865,2476.4,2476.3,0.40376]
[1725468719963,0.40980865,2476.4,2476.3,0.40376]
[1725468721279,0.00605865,2476.4,2476.3,0.40376]
[1725468721561,0.40980865,2476.4,2476.3,0.40376]
[1725468722765,0.00605865,2476.4,2476.3,2.49376]
[1725468723262,0.00605865,2476.4,2476.3,3.50317]
[1725468723662,0.00605865,2476.4,2476.3,7.54157]
[1725468724059,0.00605865,2476.4,2476.3,3.50317]
[1725468724260,0.00605865,2476.4,2476.3,14.55098]
[1725468724462,0.00605865,2476.4,2476.3,6.53216]
[1725468724662,0.00605865,2476.4,2476.3,2.49376]
[1725468725059,0.88575865,2476.4,2476.3,2.49376]
[1725468726067,0.00605865,2476.4,2476.3,7.54157]
[1725468726564,0.00605865,2476.4,2476.3,2.49376]
[1725468726962,0.00605865,2476.4,2476.3,3.50317]
[1725468727668,0.00605865,2476.4,2476.3,2.49376]
[1725468727864,0.00605865,2476.4,2476.3,3.50317]
[1725468728763,0.00605865,2476.4,2476.3,2.49376]
[1725468729161,0.40980865,2476.4,2476.3,2.49376]
[1725468729770,0.00605865,2476.4,2476.2,0.40377]
[1725468729963,1.7896,2476.3,2476.2,0.40377]
[1725468730365,2.19336,2476.3,2476.2,0.40377]
[1725468730565,1.7896,2476.3,2476.2,0.40377]
[1725468731863,2.19336,2476.3,2476.2,0.40377]
[1725468732262,2.19336,2476.3,2476.1,0.40378]
[1725468732465,2.19336,2476.3,2476.2,0.40378]
[1725468732666,2.19336,2476.3,2476.1,0.40378]
[1725468732873,1.7896,2476.3,2476.0,2.49381]
[1725468733170,0.40379,2476.2,2476.1,0.40378]
[1725468733372,2.19337,2476.3,2476.2,0.40378]
[1725468734373,1.7896,2476.3,2476.2,0.40378]
[1725468734679,0.00605865,2476.4,2476.3,1.41317]
[1725468734973,0.00605865,2476.4,2476.3,5.46767]
[1725468735368,0.00605865,2476.4,2476.3,9.50607]
[1725468735971,0.00605865,2476.4,2476.3,5.46767]
[1725468736377,0.00605865,2476.4,2476.3,9.50607]
[1725468737472,0.00605865,2476.4,2476.3,5.46767]
[1725468737771,0.00605865,2476.4,2476.3,2.25987]
[1725468738991,0.00605865,2476.4,2476.3,1.25046]
[1725468739670,0.00605865,2476.4,2476.3,0.40376]
[1725468740175,0.93425865,2476.4,2476.3,0.40376]
[1725468740375,1.33800865,2476.4,2476.3,2.49376]
[1725468741580,0.93425865,2476.4,2476.3,2.49376]
[1725468741877,1.33800865,2476.4,2476.3,2.49376]
[1725468742073,0.93425865,2476.4,2476.3,2.49376]
[1725468742273,0.00605865,2476.4,2476.3,3.50317]
[1725468743277,0.00605865,2476.4,2476.3,2.49376]
[1725468743671,0.85545865,2476.4,2476.3,2.49376]
[1725468745477,0.00605865,2476.4,2476.3,3.50317]
[1725468746185,0.00605865,2476.4,2476.3,2.49376]
[1725468746778,0.00605865,2476.4,2476.3,3.50317]
[1725468747083,0.00605865,2476.4,2476.3,6.71097]
[1725468747275,0.00605865,2476.4,2476.3,10.74937]
[1725468747579,0.00605865,2476.4,2476.3,11.65357]
[1725468748478,0.00605865,2476.4,2476.3,12.66298]
[1725468748680,0.00605865,2476.4,2476.3,20.68181]
[1725468748882,0.8358,2477.2,2477.1,1.41272]
[1725468749081,0.8358,2477.2,2477.1,2.49363]
[1725468749582,0.8358,2477.2,2477.1,3.36503]
[1725468750084,0.00605865,2477.4,2477.3,0.4036]
[1725468750285,0.00605865,2477.4,2477.3,2.4936]
[1725468750479,0.00605865,2477.4,2477.3,6.5304]
[1725468750879,0.00605865,2477.4,2477.3,9.7382]
[1725468751075,0.00605865,2477.4,2477.3,9.94470563]
[1725468751387,0.00605865,2477.4,2477.3,5.7014]
[1725468752178,0.00605865,2477.4,2477.3,6.71041]
[1725468752486,6.965,2478.6,2477.3,6.71041]
[1725468752487,0.8865,2478.0,2477.9,0.4035]
[1725468752685,0.9277,2478.5,2477.9,3.09876]
[1725468752882,0.9277,2478.5,2478.4,2.49342]
[1725468753274,0.9277,2478.5,2478.4,2.09]
[1725468753478,1.3311,2478.5,2478.4,2.09]
[1725468753683,0.40344,2478.3,2478.2,0.00605865]
[1725468754173,4.43864,2478.3,2478.2,0.00605865]
[1725468756783,0.8629,2478.4,2478.2,0.40950865]
[1725468756784,1.26633,2478.4,2478.2,0.40950865]
[1725468756985,0.8629,2478.4,2478.3,0.40344]
[1725468757787,0.8629,2478.4,2478.3,1.25194]
[1725468758489,0.93,2478.6,2478.5,0.4034]
[1725468758683,0.93,2478.6,2478.5,2.4934]
[1725468759985,0.93,2478.6,2478.4,2.09]
[1725468760292,0.4034,2478.5,2478.4,2.09]
[1725468760695,0.4034,2478.5,2478.4,2.49342]
[1725468760895,0.4034,2478.5,2478.2,0.00605865]
[1725468760896,0.40344,2478.3,2478.2,0.00605865]
[1725468761287,0.40343,2478.4,2478.2,0.00605865]
[1725468761493,0.873,2478.3,2478.2,0.40950865]
[1725468764292,0.873,2478.3,2478.2,1.41814865]
[1725468764492,0.93,2478.6,2478.5,0.4034]
[1725468764688,1.7746,2478.6,2478.5,2.4934]
[1725468765795,0.00605865,2478.7,2478.6,0.40339]
[1725468767296,0.00605865,2478.7,2478.6,4.43779]
[1725468769801,0.00605865,2478.7,2478.6,5.44627]
[1725468774509,1.7322,2479.0,2478.9,0.40334]
[1725468774709,1.7322,2479.0,2478.9,2.49334]
[1725468776003,2.13552,2479.0,2478.9,2.49334]
[1725468776203,1.7322,2479.0,2478.9,2.49334]
[1725468777808,0.40935865,2479.2,2478.9,2.09]
[1725468778008,0.40935865,2479.2,2479.1,2.09]
[1725468778910,1.41758865,2479.2,2479.1,2.09]
[1725468779811,1.41162,2479.1,2479.0,2.09]
[1725468780306,0.40336,2478.8,2478.5,2.09]
[1725468780513,0.40339,2478.6,2478.5,2.4934]
[1725468781306,0.40339,2478.6,2478.5,2.09]
[1725468781820,1.41187,2478.6,2478.5,2.09]
[1725468783020,0.40339,2478.6,2478.5,2.4934]
[1725468783322,0.40339,2478.6,2478.5,2.69310793]
[1725468784323,1.7874,2478.7,2478.6,0.40339]
[1725468784618,0.40335,2478.9,2478.8,0.40335]
[1725468784816,0.40335,2478.9,2478.8,2.49335]
[1725468785420,0.40335,2478.9,2478.8,2.09]
[1725468785610,1.41171,2478.9,2478.8,2.09]
[1725468786216,0.40336,2478.8,2478.7,2.09]
[1725468786520,0.40336,2478.8,2478.7,2.49337]
[1725468786925,0.40336,2478.9,2478.8,0.40334]
[1725468787224,0.40336,2478.9,2478.8,2.49334]
[1725468790316,0.40336,2478.8,2478.7,0.40336]
[1725468790524,1.00844,2478.7,2478.5,0.4034]
[1725468790721,0.6946,2478.6,2478.4,2.49341]
[1725468790921,0.6946,2478.6,2478.2,2.49950865]
[1725468790922,0.40344,2478.3,2478.2,2.49950865]
[1725468791123,0.40343,2478.4,2478.3,0.40342]
[1725468791621,0.40343,2478.4,2478.3,0.40343]
[1725468792028,0.40344,2478.3,2478.2,0.00605865]
[1725468792329,1.41204,2478.3,2478.2,0.00605865]
[1725468795221,0.4035,2477.9,2477.8,2.09]
[1725468795724,4.4395,2477.9,2477.8,2.09]
[1725468796726,5.44826,2477.9,2477.8,2.09]
[1725468797329,5.44826,2477.9,2477.6,2.09605865]
[1725468797330,0.40353,2477.7,2477.6,2.09605865]
[1725468799430,4.62017,2477.7,2477.6,2.09605865]
[1725468799629,5.38267,2477.7,2477.6,2.09605865]
[1725468800029,6.39151,2477.7,2477.6,2.09605865]
[1725468800830,6.39151,2477.7,2477.6,0.00605865]
[1725468801424,10.42751,2477.7,2477.6,0.00605865]
[1725468801621,1.41267,2477.2,2477.1,2.09]
[1725468802031,0.40365,2477.0,2476.9,3.16155]
[1725468802324,0.40365,2477.0,2476.9,2.09]
[1725468802719,0.6875,2477.0,2476.9,2.49366]
[1725468802920,0.40365,2477.0,2476.9,2.09]
[1725468803623,0.40365,2477.0,2476.9,2.49365]
[1725468803923,1.12854,2477.1,2477.0,0.40365]
[1725468804731,3.9256,2477.7,2477.1,1.00909]
[1725468805031,1.82445,2477.7,2477.6,0.40355]
[1725468805232,1.82445,2477.7,2477.5,2.09]
[1725468805233,1.4209,2477.7,2477.5,2.09]
[1725468805426,0.40353,2477.8,2477.7,0.40353]
[1725468805629,0.73615865,2477.9,2477.8,0.40352]
[1725468805829,0.73615865,2477.9,2477.7,2.09]
[1725468806235,0.40352,2477.8,2477.7,2.49353]
[1725468806525,0.73615865,2477.9,2477.8,0.40352]
[1725468806730,0.00605865,2477.9,2477.8,0.40352]
[1725468806932,0.40955865,2477.9,2477.8,0.6316]
[1725468807123,0.40352,2477.8,2477.7,2.09]
[1725468807326,0.00605865,2477.9,2477.7,2.09]
[1725468807528,0.40352,2477.8,2477.7,2.09]
[1725468807730,1.12372,2477.8,2477.7,2.09]
[1725468808532,1.12372,2477.8,2477.7,2.49353]
[1725468808834,1.12372,2477.8,2477.7,2.09]
[1725468810429,0.7202,2477.8,2477.7,2.49353]
[1725468810736,0.00605865,2477.9,2477.8,0.40352]
[1725468811932,0.00605865,2477.9,2477.7,2.49353]
[1725468812133,0.40352,2477.8,2477.7,2.09]
[1725468812637,1.10532,2477.8,2477.7,2.49353]
[1725468813243,0.7018,2477.8,2477.7,2.49353]
[1725468813448,0.00605865,2477.9,2477.8,0.40352]
[1725468815738,0.40955865,2477.9,2477.8,0.40352]
[1725468815941,0.40352,2477.8,2477.7,2.49353]
[1725468816234,1.11342,2477.8,2477.7,2.09]
[1725468816437,0.7099,2477.8,2477.7,2.49353]
[1725468817041,0.00605865,2477.9,2477.8,0.40352]
[1725468817240,0.40955865,2477.9,2477.7,2.49352]
[1725468817444,0.40955865,2477.9,2477.8,0.40352]
[1725468817646,0.40352,2477.8,2477.7,2.49352]
[1725468818145,0.40353,2477.7,2477.6,3.2078]
[1725468818346,1.70883,2477.7,2477.6,3.2078]
[1725468818844,0.40355,2477.6,2477.5,2.09]
[1725468819035,1.41243,2477.6,2477.5,2.09]
[1725468819447,0.40355,2477.6,2477.5,2.09]
[1725468820543,0.40355,2477.6,2477.5,2.49357]
[1725468821250,0.00605865,2477.9,2477.8,0.40352]
[1725468821747,4.04205865,2477.9,2477.8,0.40352]
[1725468821948,4.04205865,2477.9,2477.7,2.09]
[1725468821949,4.44555865,2477.9,2477.7,0.40352]
[1725468822151,0.40955865,2477.9,2477.7,0.40352]
[1725468822539,0.40956865,2477.9,2477.7,0.40352]
[1725468822866,0.40352,2477.8,2477.6,1.06004]
[1725468823152,0.40352,2477.8,2477.7,0.40353]
[1725468823344,1.01483865,2477.9,2477.5,2.09]
[1725468823744,0.40355,2477.7,2477.5,2.49356]
[1725468824343,0.6278,2477.8,2477.3,2.09]
[1725468824549,0.40358,2477.4,2477.3,2.09]
[1725468825243,0.40361,2477.3,2477.1,2.49363]
[1725468825655,0.6718,2477.2,2477.1,2.49363]
[1725468825956,0.40359,2477.4,2477.3,0.4036]
[1725468826155,0.6735,2477.5,2477.3,2.09]
[1725468826358,1.07708,2477.5,2477.3,2.49359]
[1725468826547,1.07708,2477.5,2477.4,0.40358]
[1725468827057,5.11387,2477.5,2477.3,2.49359]
[1725468827354,1.07708,2477.5,2477.3,2.4936]
[1725468827568,0.40358,2477.4,2477.3,2.09]
[1725468827854,0.40358,2477.4,2477.3,2.4936]
[1725468828046,0.40358,2477.4,2477.3,2.09]
[1725468828240,0.40362,2477.2,2477.1,2.09]
[1725468828654,1.04871,2477.3,2477.1,2.49363]
[1725468829352,1.04871,2477.3,2477.2,0.40362]
[1725468829653,1.04871,2477.3,2477.1,2.09]
[1725468829654,1.04871,2477.3,2477.1,2.49362]
[1725468830654,0.40362,2477.2,2477.1,2.09]
[1725468831052,1.04332,2477.2,2477.1,2.09]
[1725468831557,0.6397,2477.2,2477.1,2.49363]
[1725468832455,1.04332,2477.2,2477.1,2.49363]
[1725468834054,0.6397,2477.2,2477.1,2.49363]
[1725468834852,0.40359,2477.4,2477.3,0.40359]
[1725468835255,1.07708,2477.5,2477.4,0.40358]
[1725468835754,0.40358,2477.4,2477.3,2.49359]
[1725468836060,1.07708,2477.5,2477.4,0.40358]
[1725468836262,0.40358,2477.4,2477.3,2.49359]
[1725468837462,0.4036,2477.3,2477.2,0.40361]
[1725468838359,0.40362,2477.2,2477.1,2.49362]
[1725468838563,1.07032,2477.2,2477.1,2.49362]
[1725468838759,1.07032,2477.2,2477.1,2.09]
[1725468839062,0.40364,2477.1,2476.9,5.2978]
[1725468839261,0.6667,2477.2,2477.1,0.40363]
[1725468839462,0.6667,2477.2,2477.1,2.49363]
[1725468839660,0.6462,2477.3,2477.2,0.40362]
[1725468840062,0.663,2477.5,2477.2,0.6357]
[1725468840265,0.663,2477.5,2477.3,2.09]
[1725468840564,0.40358,2477.4,2477.3,2.09]
[1725468840961,1.06657,2477.5,2477.3,2.49359]
[1725468841366,0.663,2477.5,2477.4,0.40358]
[1725468841569,0.40357,2477.5,2477.3,2.49359]
[1725468841864,0.6667,2477.6,2477.2,0.6357]
[1725468842069,0.40359,2477.4,2477.2,0.40362]
[1725468842967,1.6756,2477.6,2477.2,0.40362]
[1725468843160,0.40359,2477.4,2477.2,0.40362]
[1725468843472,0.40359,2477.4,2477.3,0.4036]
[1725468844160,0.40359,2477.4,2477.2,0.4036]
[1725468844364,0.4036,2477.3,2477.1,2.49362]
[1725468844669,0.40361,2477.3,2477.1,2.49363]
[1725468844871,1.3053,2477.2,2477.1,2.49363]
[1725468845164,1.3053,2477.2,2476.9,3.8815]
[1725468845165,0.40365,2477.0,2476.9,5.2978]
[1725468845467,1.00913,2477.0,2476.7,0.00605865]
[1725468845660,0.40368,2476.8,2476.7,0.00605865]
[1725468846061,0.40368,2476.9,2476.7,0.40975865]
[1725468846361,1.9898,2477.2,2476.7,0.00605865]
[1725468846362,0.40368,2476.8,2476.7,0.00605865]
[1725468848072,5.09668,2476.8,2476.7,0.00605865]
[1725468848273,6.10589,2476.8,2476.7,0.00605865]
[1725468849164,0.6554,2476.8,2476.7,0.40975865]
[1725468849358,0.40364,2477.1,2476.7,0.00605865]
[1725468849563,2.0124,2477.2,2476.8,5.2978]
[1725468849870,0.40363,2477.1,2477.0,0.40364]
[1725468850171,1.3279,2477.2,2477.1,0.40363]
[1725468850971,1.73152,2477.2,2477.1,0.40363]
[1725468851170,1.73152,2477.2,2477.0,0.40364]
[1725468851365,1.73152,2477.2,2476.8,5.2978]
[1725468851561,1.73152,2477.2,2477.0,0.40364]
[1725468852273,1.3279,2477.2,2476.8,2.09]
[1725468852471,0.40364,2477.1,2476.9,0.40366]
[1725468853575,0.40365,2477.0,2476.9,0.40366]
[1725468854172,0.40364,2477.1,2476.8,2.09]
[1725468854470,0.40364,2477.1,2476.9,0.40366]
[1725468855076,1.73153,2477.2,2477.0,0.40364]
[1725468855277,1.3279,2477.2,2476.8,2.09]
[1725468855478,0.40366,2477.0,2476.8,2.49367]
[1725468855867,1.00911,2477.1,2476.7,0.64435865]
[1725468856072,0.40368,2476.8,2476.7,1.04805865]
[1725468856277,0.40368,2476.8,2476.7,0.64435865]
[1725468856669,0.40368,2476.9,2476.7,0.40975865]
[1725468856869,0.6606,2477.0,2476.7,0.40975865]
[1725468856870,1.06426,2477.0,2476.8,0.40368]
[1725468857078,0.40366,2476.9,2476.8,0.40368]
[1725468857777,1.06426,2477.0,2476.8,0.40368]
[1725468857978,0.40366,2476.9,2476.8,0.40368]
[1725468858176,1.06426,2477.0,2476.8,0.40368]
[1725468858479,0.6606,2477.0,2476.7,0.00605865]
[1725468858675,1.73152,2477.2,2476.8,3.09921]
[1725468858874,1.73152,2477.2,2476.9,0.6565]
[1725468859372,1.3279,2477.2,2477.1,0.40363]
[1725468859683,1.73153,2477.2,2477.0,0.40364]
[1725468860384,0.40363,2477.1,2477.0,0.40364]
[1725468860677,1.3279,2477.2,2476.8,2.09]
[1725468860877,1.3279,2477.2,2477.1,0.40363]
[1725468861677,1.52326938,2477.2,2477.0,0.40365]
[1725468862774,1.52326938,2477.2,2476.9,1.3174]
[1725468862775,1.11963938,2477.2,2477.1,0.40363]
[1725468863670,1.11963938,2477.2,2476.8,3.2078]
[1725468863875,0.40366,2477.0,2476.8,3.61147]
[1725468864980,2.12870938,2477.2,2476.7,0.00605865]
[1725468865184,1.41289,2476.8,2476.7,0.00605865]
[1725468865671,5.10348,2476.8,2476.7,0.00605865]
[1725468865973,1.06588,2476.8,2476.7,0.00605865]
[1725468866979,0.6622,2476.8,2476.7,0.40975865]
[1725468867185,1.06588,2476.8,2476.7,0.40975865]
[1725468867382,1.06588,2476.8,2476.7,0.00605865]
[1725468869390,2.07509,2476.8,2476.7,0.00605865]
[1725468869785,6.11269,2476.8,2476.7,0.00605865]
[1725468869989,2.07509,2476.8,2476.7,0.00605865]
[1725468870284,6.11269,2476.8,2476.7,0.00605865]
[1725468870988,2.07509,2476.8,2476.7,0.00605865]
[1725468873795,7.1219,2476.8,2476.7,0.00605865]
[1725468877198,7.1219,2476.8,2476.3,0.40376]
[1725468877199,0.40376,2476.4,2476.3,0.40376]
[1725468877400,0.40376,2476.3,2476.2,2.49377]
[1725468878003,1.05876,2476.4,2476.3,0.40376]
[1725468878501,1.41324,2476.2,2476.1,0.00605865]
[1725468878808,0.40387,2475.7,2475.5,0.202]
[1725468879009,0.40385,2475.8,2475.6,0.40387]
[1725468879210,0.40385,2475.8,2475.6,0.40386]
[1725468879411,0.655,2476.0,2475.5,5.2978]
[1725468879605,0.40381,2476.0,2475.9,0.40383]
[1725468879801,4.111,2476.2,2476.0,0.4038]
[1725468880107,0.4038,2476.1,2476.0,0.4038]
[1725468880306,0.4038,2476.1,2475.9,0.40382]
[1725468880510,0.4038,2476.1,2476.0,0.4038]
[1725468880709,2.31302,2476.3,2475.8,1.3164]
[1725468881007,0.00605865,2476.6,2476.2,2.09]
[1725468881205,0.173,2477.8,2477.0,29.28665]
[1725468881417,3.2078,2480.4,2476.3,1.9866742]
[1725468881418,0.1910071,2478.3,2477.7,3.2078]
[1725468881598,0.40331,2479.1,2478.1,3.2078]
[1725468881799,0.19967769,2478.8,2478.6,2.09]
[1725468882005,0.19967769,2478.8,2478.7,3.2078]
[1725468882208,0.20002746,2479.4,2478.7,3.2078]
[1725468882209,3.2078,2479.6,2478.7,7.2422]
[1725468882500,3.40554547,2479.6,2479.1,2.09]
[1725468882899,0.19967769,2479.2,2479.1,2.09]
[1725468883102,0.19967769,2479.2,2479.1,2.09605865]
[1725468883905,0.19967769,2479.2,2479.1,3.21385865]
[1725468884706,0.00605865,2479.6,2479.1,7.24745865]
[1725468884911,0.19967769,2479.3,2479.2,2.79]
[1725468889507,3.18385865,2480.2,2479.2,12.8236]
[1725468889711,3.18385865,2480.2,2479.9,2.79]
[1725468890310,0.60167828,2480.8,2479.9,2.79]
[1725468890311,3.2078,2480.4,2480.2,0.40313]
[1725468890605,0.00605865,2480.5,2480.1,2.79]
[1725468891011,0.00605865,2480.5,2480.3,0.4031]
[1725468891205,0.00605865,2480.5,2480.3,0.40311]
[1725468891620,0.00605865,2480.5,2480.2,0.40312]
[1725468891913,0.00605865,2480.5,2480.3,3.2078]
[1725468892611,0.00605865,2480.5,2480.3,3.61091]
[1725468893309,0.00605865,2480.5,2480.3,3.2078]
[1725468893612,7.2398,2480.4,2479.7,0.6052]
[1725468893817,3.2078,2480.4,2479.6,3.2078]
[1725468894023,3.2078,2480.4,2479.8,0.40318]
[1725468894213,0.40311,2480.3,2479.6,3.61102]
[1725468894608,3.2078,2480.4,2479.8,0.40319]
[1725468894913,3.2078,2480.4,2479.6,3.2078]
[1725468895108,0.40311,2480.3,2479.7,0.40321]
[1725468895311,3.2078,2480.4,2479.8,2.79]
[1725468895520,0.40315,2480.1,2479.8,2.79]
[1725468895713,3.4103395,2480.4,2479.6,3.2078]
[1725468895921,0.40315,2480.1,2479.6,3.2078]
[1725468896122,0.40314,2480.2,2479.6,3.2078]
[1725468896718,4.0916395,2480.4,2479.6,3.2078]
[1725468896910,0.40315,2480.1,2479.6,3.2078]
[1725468897113,4.0916395,2480.4,2479.6,3.2078]
[1725468897314,0.40315,2480.1,2479.6,3.2078]
[1725468897513,0.40313,2480.2,2479.6,0.40322]
[1725468897909,3.2078,2480.1,2479.5,2.79]
[1725468898114,0.40317,2480.0,2479.5,2.79]
[1725468898419,3.61095,2480.1,2479.5,3.19324]
[1725468898620,0.40316,2480.0,2479.5,3.19324]
[1725468898817,3.2078,2480.1,2479.5,2.79]
[1725468899016,3.61095,2480.1,2479.6,0.40322]
[1725468899217,0.40317,2480.0,2479.5,2.79]
[1725468899515,3.2078,2480.1,2479.5,2.79]
[1725468899516,3.61095,2480.1,2479.5,2.79]
[1725468899721,0.40316,2480.0,2479.5,2.79]
[1725468899921,3.2078,2480.1,2479.6,0.40322]
[1725468900120,3.61095,2480.1,2479.6,0.40322]
[1725468900328,3.2078,2479.8,2479.3,2.79]
[1725468900516,0.40323,2479.6,2479.2,3.2078]
[1725468900817,0.40322,2479.7,2479.2,3.61109]
[1725468901023,3.61101,2479.8,2479.3,3.19327]
[1725468901227,3.2078,2479.8,2479.5,2.79]
[1725468901420,3.611,2479.8,2479.5,2.79]
[1725468901619,3.2078,2479.8,2479.5,2.79]
[1725468902026,3.611,2479.8,2479.5,2.79]
[1725468902225,3.2078,2479.8,2479.3,2.79]
[1725468902726,3.611,2479.8,2479.3,3.19326]
[1725468902927,0.40321,2479.7,2479.3,3.19326]
[1725468903221,0.40321,2479.7,2479.1,0.00605865]
[1725468903222,3.2078,2479.5,2479.1,0.00605865]
[1725468903520,3.61109,2479.2,2479.1,0.00605865]
[1725468903729,3.2078,2479.2,2479.1,0.00605865]
[1725468904523,3.61109,2479.2,2479.1,0.00605865]
[1725468904715,3.2078,2479.2,2479.1,0.00605865]
[1725468905925,13.64469,2479.2,2479.1,0.00605865]
[1725468906125,0.40339,2478.6,2478.5,0.202]
[1725468906332,0.40339,2478.6,2478.0,3.8551]
[1725468906626,0.40338,2478.7,2478.2,0.40344]
[1725468906923,0.40337,2478.7,2478.3,0.40343]
[1725468907125,0.40942865,2478.7,2478.3,0.00605865]
[1725468907330,0.40943865,2478.7,2478.3,0.40949865]
[1725468907535,0.00605865,2478.7,2478.6,0.40339]
[1725468907722,0.00605865,2478.7,2478.5,0.4034]
[1725468907921,0.00605865,2478.7,2478.6,7.22779]
[1725468908123,0.00605865,2478.7,2478.6,0.40339]
[1725468908329,0.00605865,2478.7,2478.6,7.22779]
[1725468908521,0.00605865,2478.7,2478.6,3.19339]
[1725468910224,0.00605865,2478.7,2478.6,8.23627]
[1725468910531,0.00605865,2478.7,2478.6,14.23627]
[1725468910729,0.00605865,2478.7,2478.6,3.19339]
[1725468911328,0.00605865,2478.7,2478.6,7.22779]
[1725468911525,0.00605865,2478.7,2478.6,3.19339]
[1725468911731,0.00605865,2478.7,2478.6,7.22779]
[1725468911928,0.00605865,2478.7,2478.6,6.52779]
[1725468912126,0.00605865,2478.7,2478.4,4.21634]
[1725468912127,0.00605865,2478.7,2478.5,0.4034]
[1725468912434,0.00605865,2478.7,2478.6,0.40339]
[1725468912635,0.00605865,2478.7,2478.6,1.41187]
[1725468913028,0.00605865,2478.7,2478.6,0.40339]
[1725468916029,0.40943865,2478.7,2478.5,0.40339]
[1725468916428,4.0344,2478.6,2478.3,0.00605865]
[1725468916630,4.61978,2478.4,2478.3,0.00605865]
[1725468916831,0.4035,2477.9,2477.6,2.49354]